bitfinex/quotes_ETHUSD_20250322
["timestamp","ask_amount","ask_price","bid_price","bid_amount"]
[1742656193347,5.03731,1985.2,1984.9,0.5]
[1742656193559,0.16575093,1985.0,1984.9,0.5]
[1742656193759,7.61530385,1985.2,1984.9,0.5]
[1742656193970,0.16575093,1985.0,1984.9,0.5]
[1742656194175,5.03731,1985.2,1984.9,1.557629]
[1742656194349,0.16586702,1985.0,1984.9,1.557629]
[1742656194551,5.03731,1985.2,1984.9,1.557629]
[1742656194781,0.16586702,1985.0,1984.9,1.557629]
[1742656195282,5.03731,1985.2,1984.9,1.557629]
[1742656195484,0.16628768,1985.1,1984.9,1.557629]
[1742656195783,5.03731,1985.2,1984.9,1.557629]
[1742656195945,0.16586702,1985.0,1984.9,1.557629]
[1742656196284,0.16586702,1985.0,1984.9,12.414519]
[1742656196482,12.65233385,1985.3,1984.9,12.414519]
[1742656196663,0.1667083,1985.2,1984.9,12.414519]
[1742656196986,0.1667083,1985.2,1985.0,1.2414519]
[1742656197284,0.1667083,1985.2,1985.1,4.676]
[1742656199182,0.1667083,1985.2,1985.1,31.309]
[1742656204185,2.74470215,1985.2,1985.1,31.309]
[1742656204391,7.78197215,1985.2,1985.1,31.309]
[1742656204989,2.74470215,1985.2,1985.1,31.309]
[1742656205690,0.1667083,1985.2,1985.1,31.309]
[1742656209892,13.41342385,1985.4,1985.1,31.309]
[1742656210101,5.186128,1985.3,1985.1,31.309]
[1742656210603,0.149028,1985.3,1985.2,5.03727]
[1742656210821,0.149028,1985.3,1985.1,31.309]
[1742656211004,8.0368,1985.4,1985.1,31.309]
[1742656211203,0.14862033,1985.2,1985.1,31.309]
[1742656211383,8.0368,1985.4,1985.1,31.309]
[1742656211693,8.0368,1985.4,1985.1,36.34652]
[1742656211895,0.14907959,1985.3,1985.1,36.84652]
[1742656212210,8.0368,1985.4,1985.1,36.84652]
[1742656212406,0.14865902,1985.2,1985.1,36.84652]
[1742656212594,8.0368,1985.4,1985.1,36.84652]
[1742656212794,0.14865902,1985.2,1985.1,36.84652]
[1742656212983,8.0368,1985.4,1985.1,36.84652]
[1742656213184,0.14865902,1985.2,1985.1,36.84652]
[1742656213387,8.0368,1985.4,1985.1,36.84652]
[1742656213590,0.14865902,1985.2,1985.1,36.84652]
[1742656213804,8.0368,1985.4,1985.1,36.84652]
[1742656214020,0.8212,1985.6,1985.3,5.0369]
[1742656214229,8.43497385,1985.8,1985.3,10.8558]
[1742656214529,5.03611,1985.7,1985.3,11.3558]
[1742656214885,7.61410385,1985.7,1985.3,11.3558]
[1742656215290,12.65030385,1985.7,1985.3,11.3558]
[1742656215691,7.61425385,1985.6,1985.3,11.3558]
[1742656215993,3.39919385,1985.5,1985.3,5.8189]
[1742656217113,5.03676,1985.4,1985.3,5.8189]
[1742656217317,13.47247385,1985.5,1985.3,5.8189]
[1742656217523,13.47242385,1985.5,1985.3,5.8189]
[1742656217895,8.43580385,1985.5,1985.3,5.8189]
[1742656218296,8.43580385,1985.5,1985.4,26.629]
[1742656219630,8.58605974,1985.5,1985.4,26.629]
[1742656228245,5.18686589,1985.5,1985.4,26.629]
[1742656228414,0.15025589,1985.5,1985.4,26.629]
[1742656228822,5.03606,1985.7,1985.4,26.629]
[1742656229023,5.03606,1985.7,1985.5,4.676]
[1742656229202,7.61396385,1985.8,1985.5,4.676]
[1742656230329,7.61396385,1985.8,1985.5,5.06066386]
[1742656230499,12.64989385,1985.8,1985.5,5.06066386]
[1742656232003,2.57799385,1985.7,1985.5,5.06066386]
[1742656232533,12.64989385,1985.8,1985.5,5.06066386]
[1742656232735,7.61392385,1985.8,1985.5,5.06066386]
[1742656233938,7.61392385,1985.8,1985.5,10.09717386]
[1742656234110,8.44329385,1985.9,1985.5,10.09717386]
[1742656234315,7.61359385,1985.9,1985.5,16.41596386]
[1742656234516,0.28247623,1985.8,1985.5,21.45236386]
[1742656234719,15.64868385,1986.0,1985.6,7.18131639]
[1742656234911,0.28288999,1985.9,1985.6,7.18131639]
[1742656235315,0.28288999,1985.9,1985.6,12.21740639]
[1742656235638,0.28288999,1985.9,1985.6,7.18131639]
[1742656236934,2.86088384,1985.9,1985.6,7.18131639]
[1742656237102,0.28288999,1985.9,1985.6,7.18131639]
[1742656238429,5.31840999,1985.9,1985.6,7.18131639]
[1742656239435,0.28288999,1985.9,1985.7,0.71813164]
[1742656240542,0.28288999,1985.9,1985.7,6.25410164]
[1742656242848,0.28288999,1985.9,1985.7,1.21813164]
[1742656243519,5.03585,1985.8,1985.5,11.37956386]
[1742656243719,0.25879299,1985.7,1985.5,11.37956386]
[1742656243930,0.25879299,1985.7,1985.5,16.41602386]
[1742656244348,5.0356,1985.9,1985.5,16.41602386]
[1742656244650,0.25920679,1985.8,1985.5,16.41602386]
[1742656244831,5.0356,1985.9,1985.5,16.41602386]
[1742656245030,0.25879299,1985.7,1985.5,16.41602386]
[1742656245252,5.0356,1985.9,1985.5,16.41602386]
[1742656245453,0.25837915,1985.6,1985.5,16.41602386]
[1742656246050,5.0356,1985.9,1985.5,16.41602386]
[1742656246248,0.25837915,1985.6,1985.5,16.41602386]
[1742656246742,5.0356,1985.9,1985.5,16.41602386]
[1742656247052,0.25920679,1985.8,1985.6,26.624]
[1742656247225,5.0356,1985.9,1985.6,26.624]
[1742656247428,0.25879299,1985.7,1985.6,26.624]
[1742656247623,5.0356,1985.9,1985.6,26.624]
[1742656247822,0.25879299,1985.7,1985.6,26.624]
[1742656248023,10.07132,1985.9,1985.6,26.624]
[1742656248423,0.25920679,1985.8,1985.6,26.624]
[1742656248924,0.25879299,1985.7,1985.6,26.624]
[1742656249125,10.07132,1985.9,1985.6,26.624]
[1742656249657,0.25920679,1985.8,1985.6,26.624]
[1742656249874,13.43271385,1985.9,1985.6,26.624]
[1742656250161,0.25879299,1985.7,1985.6,26.624]
[1742656250531,8.39699385,1985.9,1985.6,26.624]
[1742656250724,0.25920679,1985.8,1985.6,26.624]
[1742656250920,5.819,1985.9,1985.6,26.624]
[1742656251124,0.25920679,1985.8,1985.6,26.624]
[1742656251355,5.819,1985.9,1985.6,26.624]
[1742656251754,0.25920679,1985.8,1985.6,26.624]
[1742656252056,5.819,1985.9,1985.6,26.624]
[1742656252252,0.25879299,1985.7,1985.6,26.624]
[1742656252645,5.819,1985.9,1985.6,26.624]
[1742656252848,0.25879299,1985.7,1985.6,26.624]
[1742656253045,5.819,1985.9,1985.6,26.624]
[1742656253247,0.25879299,1985.7,1985.6,26.624]
[1742656253447,5.819,1985.9,1985.6,26.624]
[1742656253649,0.25879299,1985.7,1985.6,26.624]
[1742656253849,5.819,1985.9,1985.6,26.624]
[1742656254062,0.25879299,1985.7,1985.6,26.624]
[1742656254232,5.819,1985.9,1985.6,26.624]
[1742656254733,0.25920679,1985.8,1985.6,26.624]
[1742656255060,5.819,1985.9,1985.6,26.624]
[1742656255262,0.25879299,1985.7,1985.6,26.624]
[1742656255435,5.819,1985.9,1985.6,26.624]
[1742656255632,0.25879299,1985.7,1985.6,26.624]
[1742656255833,5.819,1985.9,1985.6,26.624]
[1742656256065,0.25879299,1985.7,1985.6,26.624]
[1742656256266,5.819,1985.9,1985.6,26.624]
[1742656256436,0.25879299,1985.7,1985.6,26.624]
[1742656256635,5.819,1985.9,1985.6,26.624]
[1742656256838,0.25879299,1985.7,1985.6,26.624]
[1742656257732,5.819,1985.9,1985.6,26.624]
[1742656257936,0.25920679,1985.8,1985.6,26.624]
[1742656258358,0.25876716,1985.7,1985.6,26.624]
[1742656259046,5.819,1985.9,1985.6,26.624]
[1742656259255,0.25876716,1985.7,1985.6,26.624]
[1742656259455,5.819,1985.9,1985.6,26.624]
[1742656259763,0.25876716,1985.7,1985.6,26.624]
[1742656260250,10.8547,1985.9,1985.6,26.624]
[1742656260453,0.25876716,1985.7,1985.6,26.624]
[1742656260667,5.819,1985.9,1985.6,26.624]
[1742656260867,0.25876716,1985.7,1985.6,26.624]
[1742656261160,5.819,1985.9,1985.6,26.624]
[1742656261668,0.25918095,1985.8,1985.7,26.623]
[1742656263538,5.819,1985.9,1985.7,26.623]
[1742656263734,0.25918095,1985.8,1985.7,26.623]
[1742656264341,0.25918095,1985.8,1985.7,31.659]
[1742656264638,0.25918095,1985.8,1985.7,32.159]
[1742656264844,5.03507,1986.1,1985.7,37.19486]
[1742656265040,0.25918095,1985.8,1985.7,37.97776]
[1742656265244,5.03507,1986.1,1985.7,37.97776]
[1742656265474,0.25918095,1985.8,1985.7,37.97776]
[1742656265774,0.25930322,1985.8,1985.7,37.97776]
[1742656266063,7.61306385,1986.1,1985.7,37.97776]
[1742656266271,0.25930322,1985.8,1985.7,37.97776]
[1742656266569,7.61306385,1986.1,1985.7,37.97776]
[1742656267075,0.26013069,1986.0,1985.7,37.97776]
[1742656267870,0.26013069,1986.0,1985.8,5.03574]
[1742656268078,0.26013069,1986.0,1985.9,4.674]
[1742656272483,8.03475,1986.2,1985.9,4.674]
[1742656272776,0.26019514,1986.0,1985.9,4.674]
[1742656272951,5.03475,1986.2,1985.9,4.674]
[1742656272952,5.03475,1986.2,1985.9,6.148526]
[1742656273154,7.61274385,1986.2,1985.9,6.148526]
[1742656273380,0.26060881,1986.1,1985.9,6.148526]
[1742656273775,7.61274385,1986.2,1985.9,6.148526]
[1742656274253,0.26060881,1986.1,1985.9,6.148526]
[1742656274775,7.61274385,1986.2,1985.9,11.183996]
[1742656274948,0.26022092,1986.0,1985.9,11.183996]
[1742656275151,7.61274385,1986.2,1985.9,6.148526]
[1742656275684,0.26063459,1986.1,1985.9,6.148526]
[1742656275883,0.26063459,1986.1,1986.0,26.621]
[1742656276048,7.61274385,1986.2,1986.0,26.621]
[1742656276245,0.26063459,1986.1,1986.0,26.621]
[1742656276483,7.61274385,1986.2,1986.0,26.621]
[1742656276686,0.26063459,1986.1,1986.0,26.621]
[1742656276851,7.61274385,1986.2,1986.0,26.621]
[1742656277051,0.26063459,1986.1,1986.0,26.621]
[1742656277578,7.61274385,1986.2,1986.0,26.621]
[1742656277784,0.26063459,1986.1,1986.0,26.621]
[1742656278083,7.61274385,1986.2,1986.0,26.621]
[1742656278287,0.26063459,1986.1,1986.0,26.621]
[1742656278580,7.61274385,1986.2,1986.0,26.621]
[1742656278786,0.26063459,1986.1,1986.0,26.621]
[1742656279186,12.71019903,1986.3,1986.0,26.621]
[1742656279382,0.26077645,1986.1,1986.0,32.4399]
[1742656279983,7.67553781,1986.3,1986.0,32.4399]
[1742656280159,0.26077645,1986.1,1986.0,32.4399]
[1742656280359,5.03476,1986.2,1986.0,32.4399]
[1742656280555,0.26077645,1986.1,1986.0,32.4399]
[1742656281300,5.03476,1986.2,1986.0,32.4399]
[1742656281495,0.26077645,1986.1,1986.0,32.4399]
[1742656282504,5.03476,1986.2,1986.0,32.4399]
[1742656282706,0.26077645,1986.1,1986.0,32.4399]
[1742656282876,5.03476,1986.2,1986.0,32.4399]
[1742656283076,0.26077645,1986.1,1986.0,32.4399]
[1742656283287,5.03476,1986.2,1986.0,32.4399]
[1742656283507,0.26077645,1986.1,1986.0,32.4399]
[1742656283711,5.03476,1986.2,1986.0,32.4399]
[1742656283870,0.26077645,1986.1,1986.0,32.4399]
[1742656284075,5.03476,1986.2,1986.0,32.4399]
[1742656284275,0.26077645,1986.1,1986.0,32.4399]
[1742656284507,5.03476,1986.2,1986.0,32.4399]
[1742656284709,0.26077645,1986.1,1986.0,32.4399]
[1742656284910,5.03476,1986.2,1986.0,32.4399]
[1742656285109,0.26077645,1986.1,1986.0,32.4399]
[1742656286213,5.03476,1986.2,1986.0,32.4399]
[1742656286414,0.26077645,1986.1,1986.0,32.4399]
[1742656286708,5.03476,1986.2,1986.0,32.4399]
[1742656286889,0.26077645,1986.1,1986.0,32.4399]
[1742656287086,5.03476,1986.2,1986.0,32.4399]
[1742656287292,0.26077645,1986.1,1986.0,32.4399]
[1742656287804,5.03476,1986.2,1986.0,32.4399]
[1742656287991,0.26077645,1986.1,1986.0,32.4399]
[1742656288312,5.03476,1986.2,1986.0,32.4399]
[1742656288513,0.26077645,1986.1,1986.0,32.4399]
[1742656288714,5.03476,1986.2,1986.0,32.4399]
[1742656288893,0.26077645,1986.1,1986.0,32.4399]
[1742656289082,5.03476,1986.2,1986.0,32.4399]
[1742656289282,0.26077645,1986.1,1986.0,32.4399]
[1742656289482,0.7613,1986.1,1986.0,32.4399]
[1742656289685,1.02207645,1986.1,1986.0,32.4399]
[1742656291115,0.26077645,1986.1,1986.0,32.4399]
[1742656291319,7.61275385,1986.2,1986.0,32.4399]
[1742656291505,0.26077645,1986.1,1986.0,32.4399]
[1742656291979,5.03476,1986.2,1986.0,32.4399]
[1742656292182,0.26089237,1986.1,1986.0,32.4399]
[1742656292406,5.03476,1986.2,1986.0,32.4399]
[1742656292605,0.26089237,1986.1,1986.0,32.4399]
[1742656292911,5.03476,1986.2,1986.0,32.4399]
[1742656293217,0.26089237,1986.1,1986.0,32.4399]
[1742656293416,5.03476,1986.2,1986.0,32.4399]
[1742656293620,0.26089237,1986.1,1986.0,32.4399]
[1742656293824,5.03476,1986.2,1986.0,32.4399]
[1742656294000,0.26089237,1986.1,1986.0,32.4399]
[1742656294201,5.03476,1986.2,1986.0,32.4399]
[1742656294495,0.26089237,1986.1,1986.0,32.4399]
[1742656294699,5.03476,1986.2,1986.0,32.4399]
[1742656294911,0.26089237,1986.1,1986.0,32.4399]
[1742656295533,5.03476,1986.2,1986.0,32.4399]
[1742656295830,0.26089237,1986.1,1986.0,32.4399]
[1742656296029,5.03476,1986.2,1986.0,32.4399]
[1742656296322,0.26089237,1986.1,1986.0,32.4399]
[1742656296531,5.03476,1986.2,1986.0,32.4399]
[1742656296729,0.26089237,1986.1,1986.0,32.4399]
[1742656297131,5.03476,1986.2,1986.0,32.4399]
[1742656297342,0.26089237,1986.1,1986.0,32.4399]
[1742656297692,5.03476,1986.2,1986.0,32.4399]
[1742656297890,0.26089237,1986.1,1986.0,32.4399]
[1742656298094,5.03476,1986.2,1986.0,32.4399]
[1742656298323,0.26089237,1986.1,1986.0,32.4399]
[1742656298504,5.03476,1986.2,1986.0,32.4399]
[1742656298705,0.26089237,1986.1,1986.0,32.4399]
[1742656298928,5.03476,1986.2,1986.0,32.4399]
[1742656299124,0.26089237,1986.1,1986.0,32.4399]
[1742656299305,5.03476,1986.2,1986.0,32.4399]
[1742656299506,0.26089237,1986.1,1986.0,32.4399]
[1742656299717,5.03476,1986.2,1986.0,32.4399]
[1742656300027,5.03476,1986.2,1986.1,26.619]
[1742656300322,7.61275385,1986.2,1986.1,26.619]
[1742656300627,5.03476,1986.2,1986.1,26.619]
[1742656303639,7.61275385,1986.2,1986.1,26.619]
[1742656303838,12.78633544,1986.2,1986.1,31.292]
[1742656304051,12.72339824,1986.2,1986.1,31.292]
[1742656304414,15.30139209,1986.2,1986.1,26.619]
[1742656305011,12.72339824,1986.2,1986.1,26.619]
[1742656305205,15.30139209,1986.2,1986.1,26.619]
[1742656306642,12.72339824,1986.2,1986.1,26.619]
[1742656309460,12.98195507,1986.2,1986.1,26.619]
[1742656311778,11.63861068,1986.2,1986.1,26.619]
[1742656312271,10.87131068,1986.2,1986.1,26.619]
[1742656312438,3.25855683,1986.2,1986.1,26.619]
[1742656312637,0.25855683,1986.2,1986.1,26.619]
[1742656316354,12.64664385,1986.4,1986.1,26.619]
[1742656316573,5.03424,1986.4,1986.2,4.673]
[1742656316946,7.61223385,1986.4,1986.2,4.673]
[1742656317492,5.03424,1986.4,1986.2,4.673]
[1742656317790,5.03403,1986.5,1986.2,5.173]
[1742656318680,5.03403,1986.5,1986.2,10.20772]
[1742656318886,7.61202385,1986.5,1986.2,10.20772]
[1742656319064,10.61174385,1986.6,1986.3,1.020772]
[1742656319266,8.03375,1986.6,1986.3,11.874112]
[1742656319470,10.61174385,1986.6,1986.3,11.874112]
[1742656319942,5.57799385,1986.6,1986.3,11.874112]
[1742656320140,8.36330385,1986.8,1986.4,6.7215312]
[1742656320359,5.03348,1986.7,1986.4,1.6874112]
[1742656320544,7.61147385,1986.7,1986.4,1.6874112]
[1742656322288,12.64512385,1986.7,1986.4,1.6874112]
[1742656322647,7.61147385,1986.7,1986.4,1.6874112]
[1742656324450,0.24088194,1986.6,1986.4,6.7215312]
[1742656324663,8.36328385,1986.8,1986.5,0.6599389]
[1742656324873,0.24129548,1986.7,1986.6,4.672]
[1742656326098,0.24129548,1986.7,1986.6,5.172]
[1742656329092,0.24129548,1986.7,1986.6,12.78371385]
[1742656329398,0.24129548,1986.7,1986.6,19.62338585]
[1742656329702,0.752,1986.8,1986.7,5.03347]
[1742656329856,0.752,1986.8,1986.7,13.93036385]
[1742656330190,0.752,1986.8,1986.7,14.30145523]
[1742656331195,0.752,1986.8,1986.7,16.00922705]
[1742656331362,0.752,1986.8,1986.7,20.74663825]
[1742656332879,0.64509623,1986.8,1986.7,20.74663825]
[1742656333188,5.78173,1987.9,1987.4,5.03153]
[1742656333394,10.81238,1987.9,1987.5,32.285153]
[1742656333588,0.25285418,1987.8,1987.5,37.316593]
[1742656333789,0.25285418,1987.8,1987.5,32.285153]
[1742656333991,5.03079,1987.8,1987.5,32.285153]
[1742656334196,0.25263661,1987.7,1987.5,32.285153]
[1742656334362,0.25263661,1987.7,1987.6,0.53246167]
[1742656335200,8.78156,1987.9,1987.6,0.53246167]
[1742656335364,0.24659074,1987.7,1987.6,0.53246167]
[1742656335564,8.78156,1987.9,1987.6,0.53246167]
[1742656335902,8.03046,1987.9,1987.6,6.35136167]
[1742656336193,0.24710153,1987.8,1987.7,0.63513617]
[1742656336565,8.03048,1987.9,1987.7,0.63513617]
[1742656336760,5.27778153,1987.8,1987.7,0.63513617]
[1742656341678,5.03094,1987.7,1987.6,6.35136167]
[1742656341909,5.27915175,1987.7,1987.6,6.35136167]
[1742656342484,5.27915175,1987.7,1987.6,10.4879]
[1742656343395,5.27915175,1987.7,1987.6,5.8189]
[1742656343599,5.27915175,1987.7,1987.6,10.4879]
[1742656345710,0.24821175,1987.7,1987.6,10.4879]
[1742656349112,5.27915175,1987.7,1987.6,10.4879]
[1742656352700,5.27915175,1987.7,1987.6,37.0859]
[1742656354222,0.24821175,1987.7,1987.6,37.0859]
[1742656355518,10.06115,1987.9,1987.6,37.5859]
[1742656355682,0.25011267,1987.7,1987.6,37.5859]
[1742656355880,5.0305,1987.9,1987.6,42.61709]
[1742656356078,0.25011267,1987.7,1987.6,37.5859]
[1742656356279,5.0305,1987.9,1987.6,37.5859]
[1742656356481,0.25011267,1987.7,1987.6,37.5859]
[1742656356715,0.25011267,1987.7,1987.6,42.61709]
[1742656356916,5.0305,1987.9,1987.6,42.61709]
[1742656357083,0.25011267,1987.7,1987.6,37.5859]
[1742656357284,5.0305,1987.9,1987.6,37.5859]
[1742656357485,0.25011267,1987.7,1987.6,37.5859]
[1742656357787,5.0305,1987.9,1987.6,37.5859]
[1742656358105,0.25011267,1987.7,1987.6,42.61709]
[1742656358409,5.0305,1987.9,1987.6,42.61709]
[1742656358883,0.2505257,1987.8,1987.6,42.61709]
[1742656359084,5.0305,1987.9,1987.6,42.61709]
[1742656359396,0.25011267,1987.7,1987.6,42.61709]
[1742656359591,5.02993,1988.1,1987.7,5.03073]
[1742656359807,5.03018,1988.0,1987.6,46.89963201]
[1742656360113,5.03018,1988.0,1987.7,0.5]
[1742656361025,5.02993,1988.1,1987.7,5.53092]
[1742656361262,5.02969,1988.2,1987.9,0.5]
[1742656361557,5.02969,1988.2,1988.0,4.668]
[1742656362336,5.02969,1988.2,1988.1,26.596]
[1742656364733,5.02943,1988.3,1988.1,26.596]
[1742656364951,5.02943,1988.3,1988.2,1.66993387]
[1742656365326,8.02919,1988.4,1988.2,1.66993387]
[1742656365526,10.05855,1988.4,1988.2,1.66993387]
[1742656365734,3.0,1988.4,1988.2,1.66993387]
[1742656366046,8.02926,1988.4,1988.2,1.66993387]
[1742656366210,8.02926,1988.4,1988.2,7.48883387]
[1742656366409,13.05862,1988.4,1988.2,7.48883387]
[1742656367223,13.05862,1988.4,1988.3,0.553092]
[1742656367845,8.02926,1988.4,1988.3,0.553092]
[1742656368045,5.02926,1988.4,1988.3,0.553092]
[1742656369321,5.02942,1988.3,1988.2,5.8189]
[1742656369526,5.28283871,1988.3,1988.2,5.8189]
[1742656369727,6.05343871,1988.3,1988.2,5.8189]
[1742656370521,0.25341871,1988.3,1988.2,5.8189]
[1742656370745,5.02928,1988.4,1988.2,5.8189]
[1742656370920,5.02928,1988.4,1988.3,0.58189]
[1742656376569,5.029,1988.5,1988.3,0.58189]
[1742656376771,5.029,1988.5,1988.4,4.667]
[1742656377160,5.0918633,1988.5,1988.4,4.667]
[1742656377361,5.029,1988.5,1988.4,4.667]
[1742656379177,7.59752041,1988.5,1988.4,4.667]
[1742656380244,7.66038374,1988.5,1988.4,4.667]
[1742656380449,7.59752041,1988.5,1988.4,4.667]
[1742656381185,5.02938,1988.4,1988.2,5.8189]
[1742656381478,7.59794041,1988.3,1988.2,5.8189]
[1742656381682,7.59794041,1988.3,1988.2,32.4079]
[1742656381887,9.82203823,1988.3,1988.2,37.0749]
[1742656382180,12.82203823,1988.3,1988.2,37.0749]
[1742656382338,12.75916884,1988.3,1988.2,37.0749]
[1742656382756,12.75916884,1988.3,1988.2,32.4079]
[1742656383795,12.75916884,1988.3,1988.2,26.589]
[1742656384447,12.75916884,1988.3,1987.9,4.667]
[1742656384448,5.03018,1988.0,1987.9,4.667]
[1742656384647,8.70783664,1988.0,1987.9,4.667]
[1742656385147,10.42338972,1988.0,1987.9,4.667]
[1742656385390,10.36050478,1988.0,1987.9,4.667]
[1742656386976,5.26533129,1988.0,1987.9,4.667]
[1742656387285,0.23515129,1988.0,1987.9,5.1337]
[1742656387784,5.26533129,1988.0,1987.9,5.1337]
[1742656388248,5.26533129,1988.0,1987.9,4.667]
[1742656388445,0.23515129,1988.0,1987.9,4.667]
[1742656388650,0.23515129,1988.0,1987.9,5.167]
[1742656390163,5.26533129,1988.0,1987.9,5.167]
[1742656390392,5.26533129,1988.0,1987.9,4.667]
[1742656393296,5.03094,1987.7,1987.6,32.4079]
[1742656393595,5.03094,1987.7,1987.6,37.0749]
[1742656393798,5.26387478,1987.7,1987.6,37.0749]
[1742656394562,9.04877478,1987.7,1987.6,26.589]
[1742656394765,9.04877478,1987.7,1987.6,31.256]
[1742656395001,10.71509031,1987.7,1987.6,31.256]
[1742656395192,10.65219583,1987.7,1987.6,31.256]
[1742656395361,10.88500197,1987.7,1987.6,31.256]
[1742656399463,15.16907546,1987.7,1987.6,31.256]
[1742656400296,15.16907546,1987.7,1987.6,26.589]
[1742656406516,8.03144,1987.5,1987.4,4.668]
[1742656406726,10.06258,1987.6,1987.4,4.668]
[1742656406923,5.26191424,1987.5,1987.4,4.668]
[1742656409649,0.23047424,1987.5,1987.4,4.668]
[1742656409927,5.26191424,1987.5,1987.4,4.668]
[1742656413110,5.03169,1987.4,1987.3,26.6]
[1742656413313,12.37866557,1987.4,1987.3,31.268]
[1742656413539,12.52543241,1987.4,1987.3,31.268]
[1742656414835,13.34013241,1987.4,1987.3,31.268]
[1742656415537,13.34013241,1987.4,1987.3,26.6]
[1742656415719,15.33121043,1987.4,1987.3,26.6]
[1742656416441,8.8469,1987.2,1987.1,4.669]
[1742656417410,13.33959529,1987.2,1987.1,4.669]
[1742656425257,12.52489529,1987.2,1987.1,4.669]
[1742656425563,14.28058882,1987.2,1987.1,4.669]
[1742656429570,8.2408218,1987.2,1987.1,4.669]
[1742656429780,8.30372924,1987.2,1987.1,4.669]
[1742656430063,8.2408218,1987.2,1987.1,4.669]
[1742656430845,8.2408218,1987.2,1987.1,31.276]
[1742656431170,8.30372821,1987.2,1987.1,31.276]
[1742656435265,8.2408218,1987.2,1987.1,31.276]
[1742656438144,8.30372818,1987.2,1987.1,31.276]
[1742656439373,9.39213628,1987.2,1987.1,31.276]
[1742656439674,10.19223628,1987.2,1987.1,31.276]
[1742656439842,10.1293299,1987.2,1987.1,31.276]
[1742656440441,10.1293299,1987.2,1987.1,4.669]
[1742656440640,14.41340339,1987.2,1987.1,4.669]
[1742656441240,10.1293299,1987.2,1987.1,4.669]
[1742656441440,14.41340339,1987.2,1987.1,4.669]
[1742656441640,10.1293299,1987.2,1987.1,4.669]
[1742656442387,14.41340339,1987.2,1987.1,4.669]
[1742656443244,10.1293299,1987.2,1987.1,4.669]
[1742656448503,8.2408218,1987.2,1987.1,4.669]
[1742656448660,8.30372976,1987.2,1987.1,4.669]
[1742656448863,8.2408218,1987.2,1987.1,4.669]
[1742656449180,8.30372917,1987.2,1987.1,4.669]
[1742656453484,8.2408218,1987.2,1987.1,4.669]
[1742656453685,8.30372825,1987.2,1987.1,4.669]
[1742656455302,8.2408218,1987.2,1987.1,4.669]
[1742656456060,5.2408218,1987.2,1987.1,4.669]
[1742656456496,5.30372687,1987.2,1987.1,4.669]
[1742656456791,5.2408218,1987.2,1987.1,4.669]
[1742656460606,9.75942036,1987.2,1987.1,4.669]
[1742656461096,8.03245,1987.1,1987.0,26.608]
[1742656461299,8.80035,1987.1,1987.0,31.277]
[1742656461500,8.95830025,1987.1,1987.0,31.277]
[1742656461802,10.93132698,1987.1,1987.0,26.608]
[1742656462192,15.21540047,1987.1,1987.0,26.608]
[1742656462981,14.44750047,1987.1,1987.0,26.608]
[1742656463281,12.47447374,1987.1,1987.0,26.608]
[1742656463488,8.19040025,1987.1,1987.0,26.608]
[1742656463776,8.25330947,1987.1,1987.0,26.608]
[1742656464016,5.19040025,1987.1,1987.0,26.608]
[1742656464631,5.25330946,1987.1,1987.0,26.608]
[1742656464914,5.19040025,1987.1,1987.0,26.608]
[1742656468684,5.25330942,1987.1,1987.0,26.608]
[1742656469116,5.19040025,1987.1,1987.0,26.608]
[1742656470428,14.33234292,1987.1,1987.0,26.608]
[1742656470594,14.26943377,1987.1,1987.0,31.277]
[1742656474091,14.26943377,1987.1,1987.0,4.669]
[1742656478611,13.49673377,1987.1,1987.0,4.669]
[1742656479615,14.26943377,1987.1,1987.0,4.669]
[1742656486318,5.03321,1986.8,1986.7,26.608]
[1742656486645,8.2238896,1986.8,1986.7,31.278]
[1742656489755,8.2238896,1986.8,1986.7,31.778]
[1742656489910,8.2238896,1986.8,1986.7,31.278]
[1742656503757,8.2238896,1986.8,1986.7,4.67]
[1742656512998,8.2238896,1986.8,1986.7,31.28]
[1742656522713,10.79673162,1986.8,1986.7,26.61]
[1742656522914,13.14558951,1986.8,1986.7,26.61]
[1742656523905,10.57274749,1986.8,1986.7,26.61]
[1742656524218,10.73381135,1986.8,1986.7,26.61]
[1742656524412,10.73381135,1986.8,1986.5,31.781]
[1742656524413,8.03372,1986.6,1986.5,31.781]
[1742656524619,8.15193337,1986.6,1986.5,31.781]
[1742656525018,3.11821337,1986.6,1986.5,31.781]
[1742656525317,8.15193337,1986.6,1986.5,31.781]
[1742656530410,8.15193337,1986.6,1986.5,27.111]
[1742656530610,9.7906824,1986.6,1986.5,31.281]
[1742656530814,8.21485586,1986.6,1986.5,31.281]
[1742656533229,10.78769788,1986.6,1986.5,31.281]
[1742656533406,10.72477539,1986.6,1986.5,31.281]
[1742656534216,8.15193337,1986.6,1986.5,31.281]
[1742656534411,8.21485953,1986.6,1986.5,31.281]
[1742656546147,3.11821337,1986.6,1986.5,31.281]
[1742656546511,8.15193337,1986.6,1986.5,31.281]
[1742656546819,0.11821337,1986.6,1986.5,33.85384202]
[1742656547137,5.03351,1986.7,1986.5,33.85384202]
[1742656547439,0.09869582,1986.6,1986.5,33.85384202]
[1742656547640,5.0333,1986.8,1986.5,33.85384202]
[1742656547833,0.09869582,1986.6,1986.5,33.85384202]
[1742656548017,10.0667,1986.8,1986.5,33.85384202]
[1742656548216,0.09910948,1986.7,1986.5,33.85384202]
[1742656548416,5.13258948,1986.7,1986.5,33.85384202]
[1742656549138,0.09910948,1986.7,1986.5,33.85384202]
[1742656549442,5.13262948,1986.7,1986.5,33.85384202]
[1742656551444,0.09910948,1986.7,1986.5,33.85384202]
[1742656553613,0.09910948,1986.7,1986.6,2.57284202]
[1742656553914,3.0,1986.9,1986.6,8.10656202]